bitfinex/quotes_ETHUSD_20220118
["timestamp","ask_amount","ask_price","bid_price","bid_amount"]
[1642530242694,0.00946301,3101.1,3101.0,0.1288]
[1642530242893,0.00946301,3101.1,3101.0,0.12993685]
[1642530245534,0.00946301,3101.1,3101.0,0.00113685]
[1642530247045,0.00113684,3101.4,3101.0,0.00113685]
[1642530247046,0.00113684,3101.4,3101.1,0.80613]
[1642530251000,0.00113684,3101.4,3101.3,1.16771106]
[1642530251200,0.03395703,3101.3,3101.0,0.00908157]
[1642530251467,0.1288,3101.2,3101.0,0.00908157]
[1642530251661,0.19516301,3101.3,3101.0,0.00908157]
[1642530251861,0.1288,3101.3,3101.2,0.00776232]
[1642530252061,0.9351181,3101.3,3101.2,0.00776232]
[1642530252462,0.1288,3101.3,3101.2,0.00776232]
[1642530253463,0.1288,3101.3,3101.1,0.00776423]
[1642530253762,0.4288,3101.3,3101.1,0.00279062]
[1642530253963,0.1288,3101.3,3101.1,0.00279062]
[1642530254363,2.86799704,3101.3,3101.1,0.00279062]
[1642530254962,2.86799704,3101.3,3101.2,1.34111328]
[1642530255195,0.1288,3101.3,3101.2,1.34111328]
[1642530255592,3.7788,3101.3,3101.2,1.34111328]
[1642530255994,6.51799704,3101.3,3101.2,1.34111328]
[1642530256194,6.51799704,3101.3,3101.1,0.00279062]
[1642530256393,7.32432284,3101.3,3101.1,0.00279062]
[1642530256795,7.32432284,3101.3,3101.2,0.00670384]
[1642530256993,7.32432284,3101.3,3101.2,0.01358328]
[1642530257194,6.51799704,3101.3,3101.2,0.01358328]
[1642530257400,2.86799704,3101.3,3101.2,0.01358328]
[1642530258294,2.73919704,3101.3,3101.2,0.01358328]
[1642530258495,2.73919704,3101.3,3101.2,0.81980328]
[1642530259342,2.73919704,3101.3,3101.2,2.18910328]
[1642530261144,2.73919704,3101.3,3101.2,4.51455593]
[1642530262939,2.73919704,3101.3,3101.2,4.21305593]
[1642530263136,2.73919704,3101.3,3101.2,3.83335593]
[1642530264339,0.00113684,3101.4,3101.3,2.7]
[1642530264540,0.00113684,3101.4,3101.3,7.4240549]
[1642530264739,0.00113684,3101.4,3101.3,8.4240549]
[1642530265337,0.00113684,3101.4,3101.3,5.7240549]
[1642530266842,0.01296562,3101.4,3101.3,5.86071813]
[1642530267043,0.01296562,3101.4,3101.3,3.21166323]
[1642530267442,0.01296562,3101.4,3101.3,2.21166323]
[1642530267649,0.01296562,3101.4,3101.3,0.00786323]
[1642530268043,0.01182878,3101.4,3101.3,0.00786323]
[1642530268446,7.85690213,3101.4,3101.3,0.00786323]
[1642530268649,8.28570213,3101.4,3101.3,6.323e-05]
[1642530268845,0.10105244,3101.2,3101.0,0.00113685]
[1642530269044,0.90755044,3101.2,3101.0,0.00113685]
[1642530269245,1.20755044,3101.2,3100.7,0.00284212]
[1642530269447,0.0481553,3101.0,3100.7,0.00284212]
[1642530269645,1.74186,3100.9,3100.7,0.00284212]
[1642530269845,1.76697142,3100.9,3100.7,0.00284212]
[1642530270124,2.5483856,3100.9,3100.5,1.17485903]
[1642530270329,0.9353256,3100.9,3100.5,1.17485903]
[1642530270530,0.9353256,3100.9,3100.6,0.00341054]
[1642530270731,0.80653,3100.8,3100.6,0.00341054]
[1642530270933,5.829,3100.7,3100.6,0.00341054]
[1642530271830,5.829,3100.7,3100.6,0.01792419]
[1642530272233,0.129,3100.7,3100.6,0.01792419]
[1642530272434,2.579,3100.7,3100.6,0.01792419]
[1642530272939,0.129,3100.7,3100.6,0.01792419]
[1642530273136,1.601975,3101.0,3100.6,0.01792419]
[1642530273536,1.601975,3101.0,3100.7,0.00284212]
[1642530273736,0.129,3101.1,3100.7,0.00284212]
[1642530274546,1.730975,3101.1,3100.7,0.80916212]
[1642530274849,3.3438506,3101.1,3100.8,0.0022737]
[1642530275047,3.3438506,3101.1,3100.6,0.01298735]
[1642530275048,0.03122211,3100.9,3100.6,0.01298735]
[1642530275247,0.129,3100.8,3100.6,0.01298735]
[1642530275746,0.129,3100.8,3100.6,8.735e-05]
[1642530275747,3.9374888,3100.8,3100.6,8.735e-05]
[1642530276048,0.3,3100.7,3100.6,8.735e-05]
[1642530276250,1.429,3100.7,3100.6,8.735e-05]
[1642530276445,1.429,3100.7,3100.0,0.129078]
[1642530276446,0.01555818,3100.5,3100.0,0.129078]
[1642530276647,2.32013265,3100.3,3100.0,0.129078]
[1642530276846,5.85,3100.1,3100.0,0.00012012]
[1642530277049,6.979,3100.1,3099.2,0.81250162]
[1642530277245,0.129,3100.0,3099.2,1.91239046]
[1642530277445,0.8068198,3099.9,3099.3,0.00454739]
[1642530277692,0.129,3099.8,3099.3,0.00454739]
[1642530278097,0.93584,3099.8,3099.3,0.00454739]
[1642530278493,0.93584,3099.8,3098.8,0.00738951]
[1642530278694,3.65826415,3099.8,3098.8,0.13638951]
[1642530279092,0.80681,3099.7,3099.0,0.80675]
[1642530279294,0.80681,3099.7,3099.4,1.30178701]
[1642530279694,0.80681,3099.7,3099.5,0.00341054]
[1642530280496,0.8068011,3099.8,3099.5,0.00341054]
[1642530280701,0.129,3099.9,3099.5,0.00341054]
[1642530281670,0.80675,3099.8,3099.5,0.00341054]
[1642530281870,0.01401017,3099.7,3099.6,0.00965179]
[1642530282271,0.01401017,3099.7,3099.6,0.01249391]
[1642530282477,8.68698814,3099.7,3099.6,9.391e-05]
[1642530282673,9.68698814,3099.7,3099.6,9.391e-05]
[1642530282893,0.8070211,3099.5,3098.8,0.0046413]
[1642530283072,5.4654867,3099.4,3098.8,0.0046413]
[1642530283278,2.30168042,3099.3,3098.8,0.0046413]
[1642530283474,2.30168042,3099.3,3098.4,1.12452482]
[1642530283475,3.27303598,3099.2,3098.4,1.12452482]
[1642530283674,0.01400972,3099.1,3098.5,0.00634657]
[1642530283875,0.93605,3099.0,3098.5,0.00634657]
[1642530284076,0.01293331,3098.9,3098.5,0.00634657]
[1642530284273,0.80705,3099.0,3098.5,0.00634657]
[1642530284674,1.77170502,3098.7,3098.5,0.00634657]
[1642530284875,0.8070751,3098.7,3098.1,0.00862026]
[1642530285492,0.8070751,3098.7,3098.5,1.20496601]
[1642530285694,0.8070751,3098.7,3098.0,0.00918868]
[1642530285898,0.8070751,3098.7,3098.6,0.00577814]
[1642530286094,0.80711,3098.6,3098.0,0.00918868]
[1642530286295,0.8071118,3098.5,3098.0,0.00918868]
[1642530286498,0.3,3098.4,3098.0,0.00918868]
[1642530286697,0.3,3098.4,3098.0,1.49501374]
[1642530286897,0.3,3098.4,3097.7,0.01089395]
[1642530287100,0.3,3098.4,3098.3,0.00809461]
[1642530287500,6.279,3098.4,3098.3,0.01557802]
[1642530287900,0.129,3098.4,3098.3,0.01557802]
[1642530288200,0.00752414,3098.6,3098.3,0.01557802]
[1642530288599,0.00752414,3098.6,3098.4,0.00691499]
[1642530289748,0.00752414,3098.6,3098.5,1.97885234]
[1642530289950,0.00752414,3098.6,3098.2,1.4263557]
[1642530290149,0.00866099,3098.6,3098.2,1.4263557]
[1642530290349,0.00866099,3098.6,3097.2,2.42087]
[1642530290552,0.81575099,3098.6,3097.7,1.2001]
[1642530290748,1.62283439,3098.6,3097.9,0.00284212]
[1642530290956,1.86643153,3098.3,3097.9,0.00284212]
[1642530291150,0.129,3098.5,3097.9,0.00284212]
[1642530291550,0.129,3098.5,3097.8,0.00341054]
[1642530291753,0.1380632,3098.5,3097.5,1.17108647]
[1642530291951,0.1380632,3098.5,3098.0,0.01013609]
[1642530292152,2.28242447,3098.4,3098.0,0.01013609]
[1642530292353,1.74338,3098.3,3098.1,0.00170527]
[1642530292618,0.3,3098.2,3098.1,0.00170527]
[1642530292803,1.74338,3098.3,3098.1,0.00170527]
[1642530294109,8.97593116,3098.2,3098.1,0.00170527]
[1642530294308,11.12813116,3098.2,3098.1,5.27e-06]
[1642530294906,11.12813116,3098.2,3098.0,4.136e-05]
[1642530295109,3.9858148,3098.1,3098.0,4.136e-05]
[1642530295507,4.2858148,3098.1,3098.0,4.136e-05]
[1642530296743,4.31188117,3098.1,3098.0,4.136e-05]
[1642530296943,0.80733,3097.7,3097.1,1.24921241]
[1642530297343,0.80733,3097.7,3097.2,0.00511581]
[1642530298751,0.8072974,3097.6,3097.2,0.00511581]
[1642530299147,0.02598576,3097.5,3097.2,0.00511581]
[1642530299348,0.8072974,3097.6,3097.2,0.00511581]
[1642530300190,0.8072974,3097.6,3097.2,1.11404962]
[1642530300590,0.8072974,3097.6,3097.3,0.00454739]
[1642530301210,5.90740902,3098.1,3097.3,0.00454739]
[1642530301211,0.15506637,3098.1,3097.3,0.00454739]
[1642530301398,2.40027671,3098.1,3097.9,1.38275053]
[1642530301594,2.27127671,3098.1,3097.3,0.00454739]
[1642530301794,0.01969075,3097.5,3097.4,0.00764806]
[1642530302195,0.01969075,3097.5,3097.4,0.01162703]
[1642530303598,0.01219075,3097.5,3097.4,0.01162703]
[1642530303870,0.00113685,3098.6,3098.3,1.48553221]
[1642530304063,0.00113685,3098.6,3098.4,0.129]
[1642530304255,3.6182,3099.3,3098.4,0.129]
[1642530304457,3.6182,3099.3,3098.4,0.93579]
[1642530304756,3.6182,3099.3,3098.4,1.93579]
[1642530304757,0.00625266,3099.2,3098.4,1.93579]
[1642530305157,0.00568423,3099.1,3098.4,1.129]
[1642530305458,0.00511581,3099.0,3098.4,1.129]
[1642530305661,2.13505621,3098.8,3098.4,1.129]
[1642530305860,3.6182,3099.3,3098.4,0.129]
[1642530306063,0.079,3099.2,3098.5,0.00284212]
[1642530306266,1.38013685,3099.2,3098.5,0.00284212]
[1642530306465,0.8069309,3099.0,3098.4,0.11934346]
[1642530306670,0.14354353,3098.9,3098.4,0.11934346]
[1642530306866,0.4312737,3098.9,3098.6,0.00675864]
[1642530307062,0.00170527,3098.8,3098.6,0.00675864]
[1642530307262,5.629,3098.7,3098.6,0.00675864]
[1642530307462,5.63013685,3098.7,3098.6,0.00675864]
[1642530307690,7.78675632,3098.7,3098.6,0.00675864]
[1642530309096,8.08675632,3098.7,3098.6,0.00675864]
[1642530309697,6.65719,3098.6,3097.4,0.129]
[1642530309899,0.80725,3098.2,3097.4,0.129]
[1642530310099,0.129,3098.1,3097.5,0.00568423]
[1642530310298,0.129,3098.3,3097.5,0.00568423]
[1642530310597,0.429,3098.3,3097.5,0.00568423]
[1642530310797,0.02393794,3098.0,3097.5,0.00568423]
[1642530310999,2.36745764,3098.0,3097.5,0.00568423]
[1642530311449,2.3435197,3098.0,3097.5,0.00568423]
[1642530311848,1.61475,3097.9,3097.7,0.00908226]
[1642530312045,6.279,3097.8,3097.7,0.00908226]
[1642530313448,6.579,3097.8,3097.7,0.00908226]
[1642530314247,0.129,3097.8,3097.7,0.00908226]
[1642530314648,5.38878,3098.3,3097.7,0.00908226]
[1642530314649,0.8070984,3098.3,3097.7,0.00908226]
[1642530314849,0.8070984,3098.3,3097.8,0.00423028]
[1642530315097,0.129,3098.7,3098.6,1.18170958]
[1642530315300,0.129,3098.7,3097.7,0.02752257]
[1642530315301,0.429,3098.7,3098.0,0.80702]
[1642530315502,0.129,3098.7,3098.0,0.80702]
[1642530315706,0.129,3098.7,3098.1,0.00341054]
[1642530315904,0.129,3098.9,3098.1,0.00341054]
[1642530316103,3.994,3099.2,3098.2,0.129]
[1642530316302,0.129,3099.6,3098.2,0.129]
[1642530316303,0.00113685,3098.9,3098.2,0.129]
[1642530316503,0.00113685,3098.9,3098.3,0.00227369]
[1642530316704,0.129,3099.6,3098.3,3.6371441]
[1642530316705,2.17503908,3099.4,3098.3,3.6371441]
[1642530316905,0.00599292,3098.7,3098.3,1.61598369]
[1642530317110,0.00599292,3098.7,3098.4,0.00170527]
[1642530317603,0.00599292,3098.7,3098.4,0.80856527]
[1642530317805,0.81299862,3098.7,3098.4,0.00170527]
[1642530318004,0.81299862,3098.7,3098.5,0.00113685]
[1642530318206,0.81299862,3098.7,3098.4,0.00170527]
[1642530318405,5.40444455,3098.5,3098.3,0.00227369]
[1642530319043,2.10444455,3098.5,3098.3,0.00227369]
[1642530319645,2.91155465,3098.5,3098.3,0.00227369]
[1642530320246,5.44131343,3098.4,3098.3,0.00227369]
[1642530321848,0.01023595,3098.3,3097.6,0.129]
[1642530322056,1.94646575,3098.3,3097.6,0.129]
[1642530322258,1.94646575,3098.3,3097.7,0.00341054]
[1642530322452,0.3,3098.2,3097.7,0.00341054]
[1642530322701,1.74364,3098.1,3097.7,0.00341054]
[1642530322902,3.65828,3098.1,3097.7,0.00341054]
[1642530323102,1.9146574,3098.0,3097.7,0.00341054]
[1642530323304,0.9363199,3097.9,3097.7,0.00341054]
[1642530323505,0.3,3097.8,3097.7,0.00341054]
[1642530324104,0.6,3097.8,3097.7,0.00341054]
[1642530324307,0.3,3097.8,3097.7,0.00341054]
[1642530324813,3.04131343,3097.8,3097.7,0.00341054]
[1642530326008,3.84868343,3097.8,3097.7,0.00341054]
[1642530326669,3.85591629,3097.8,3097.7,0.00341054]
[1642530326871,7.05591629,3097.8,3097.7,0.01209294]
[1642530327870,7.35591629,3097.8,3097.7,0.01209294]
[1642530329876,7.48501629,3097.8,3097.7,0.01209294]
[1642530333002,7.35591629,3097.8,3097.7,0.01209294]
[1642530335145,1.61496,3097.5,3096.9,1.1936]
[1642530335352,0.8074733,3097.3,3096.6,6.9693]
[1642530335546,0.80748,3097.5,3097.0,0.00397897]
[1642530336046,0.80748,3097.5,3096.7,0.00568424]
[1642530336247,0.80747,3097.2,3096.7,0.00568424]
[1642530336449,1.56494,3097.2,3096.6,0.00625266]
[1642530336647,0.8074629,3097.1,3096.6,0.00625266]
[1642530337619,2.4224429,3097.1,3096.6,0.00625266]
[1642530338410,2.4224429,3097.1,3096.5,0.00682109]
[1642530338611,0.80754,3096.9,3096.5,0.00682109]
[1642530338815,1.10754,3096.9,3096.5,0.00682109]
[1642530339011,0.3,3096.8,3096.5,0.00682109]
[1642530339217,0.3,3096.8,3096.2,0.00852636]
[1642530339218,0.129,3096.7,3096.2,0.00852636]
[1642530339413,0.129,3096.7,3096.0,0.0096632]
[1642530339612,0.80777,3096.6,3095.9,0.01023163]
[1642530339810,0.8077773,3096.4,3095.9,0.01023163]
[1642530340012,2.78797446,3096.2,3095.9,0.01023163]
[1642530340813,0.80777,3096.1,3095.7,0.01136847]
[1642530341112,0.80779,3096.0,3095.4,0.01307374]
[1642530342049,0.80779,3096.0,3095.2,1.48142374]
[1642530342250,0.8077695,3095.9,3095.2,1.48142374]
[1642530342447,0.8077695,3095.9,3095.2,1.38085532]
[1642530342848,0.00284212,3095.8,3095.2,1.38085532]
[1642530343253,0.0022737,3095.7,3095.2,1.38085532]
[1642530343448,0.8099776,3095.7,3095.2,1.38085532]
[1642530343650,0.00170527,3095.6,3095.2,1.38085532]
[1642530344052,0.00113685,3095.5,3095.2,1.38085532]
[1642530344451,0.00341054,3095.9,3095.2,1.38085532]
[1642530344650,0.00341054,3095.9,3095.2,2.18856532]
[1642530344854,0.00284212,3095.8,3095.2,2.18856532]
[1642530345098,0.8077066,3095.7,3095.2,2.18856532]
[1642530345298,0.8099803,3095.7,3095.2,2.18856532]
[1642530345499,0.00170527,3095.6,3095.2,2.18856532]
[1642530345900,0.00113685,3095.5,3095.2,2.18856532]
[1642530346301,0.00170527,3095.6,3095.2,2.18856532]
[1642530346705,0.13643303,3096.1,3095.2,2.18856532]
[1642530346706,0.00113685,3095.5,3095.2,2.18856532]
[1642530346904,0.00113685,3095.5,3095.4,0.01098976]
[1642530347103,0.00724348,3095.7,3095.4,0.01098976]
[1642530347304,0.00113685,3095.5,3095.4,0.01098976]
[1642530347503,0.00170527,3095.6,3095.4,0.01098976]
[1642530347705,0.00113685,3095.5,3095.4,0.01098976]
[1642530349348,1.70296013,3096.1,3095.4,0.01098976]
[1642530349748,0.00284212,3096.0,3095.4,0.01098976]
[1642530349951,0.8077225,3095.8,3095.4,0.01098976]
[1642530350348,0.00113685,3095.7,3095.4,0.01098976]
[1642530351554,0.1292,3095.6,3095.4,0.01098976]
[1642530351749,0.1292,3095.6,3095.1,0.00852582]
[1642530352148,0.1292,3095.6,3095.2,0.00170527]
[1642530352350,0.9370518,3095.6,3095.2,0.00170527]
[1642530352595,1.1995518,3095.6,3095.2,0.00170527]
[1642530352794,3.6792755,3095.5,3095.2,0.00170527]
[1642530352994,0.1292,3095.4,3095.2,0.00170527]
[1642530354699,0.937197,3095.4,3095.2,0.00170527]
[1642530354899,6.65802,3095.3,3095.2,0.00170527]
[1642530355101,9.94531208,3095.3,3095.2,0.00170527]
[1642530355999,7.12102,3095.3,3095.2,0.00170527]
[1642530356455,19.6282625,3095.0,3094.2,0.84517957]
[1642530356654,0.463,3094.9,3093.8,0.84517957]
[1642530356852,1.07375,3094.6,3094.3,0.00511581]
[1642530357051,0.1292,3094.5,3094.3,0.00511581]
[1642530357251,0.12523866,3094.5,3094.3,0.00511581]
[1642530357452,4.58913076,3094.4,3094.3,0.00511581]
[1642530357650,4.71833076,3094.4,3094.3,0.00511581]
[1642530357851,1.81833076,3094.4,3094.3,0.00511581]
[1642530358352,1.68913076,3094.4,3094.1,1.19806131]
[1642530358855,0.1292,3094.8,3093.7,0.05005]
[1642530358856,4.4270438,3095.0,3094.6,1.47109456]
[1642530359252,0.8080438,3095.0,3094.7,0.00284212]
[1642530359455,3.1048594,3094.9,3094.7,0.00284212]
[1642530359653,5.9792,3094.8,3093.9,0.00738951]
[1642530359852,0.8082778,3094.7,3093.9,0.00738951]
[1642530360093,0.1292,3094.6,3093.8,0.00795793]
[1642530360495,2.00509353,3094.5,3093.8,0.00795793]
[1642530360695,0.1292,3094.4,3093.7,0.00800793]
[1642530361201,0.00284212,3094.3,3093.7,0.00800793]
[1642530361596,0.00227369,3094.2,3093.7,0.00800793]
[1642530361796,0.00227369,3094.2,3094.0,0.01075253]
[1642530361997,0.80833,3094.3,3094.0,0.01075253]
[1642530361998,4.50170527,3094.1,3094.0,0.01075253]
[1642530363098,0.00170527,3094.1,3094.0,0.01075253]
[1642530364543,0.00170527,3094.1,3093.3,1.01579973]
[1642530364745,0.00170527,3094.1,3093.3,0.86765901]
[1642530364948,0.00113685,3094.0,3093.6,0.8081]
[1642530365153,0.00113685,3094.0,3093.7,0.1292]
[1642530365351,0.00341054,3094.4,3093.7,0.1292]
[1642530365749,0.00284212,3094.3,3093.7,0.1292]
[1642530365951,0.00284212,3094.3,3094.2,1.24677182]
[1642530366151,0.00666454,3094.6,3094.2,1.54677182]
[1642530366350,0.00666454,3094.6,3094.2,1.84677182]
[1642530366555,0.00397896,3094.5,3094.2,2.84677182]
[1642530366750,0.00397896,3094.5,3094.2,1.84677182]
[1642530366950,0.00341054,3094.4,3094.3,1.0]
[1642530367151,0.00341054,3094.4,3094.3,1.10787]
[1642530367701,0.00341054,3094.4,3094.3,2.10787]
[1642530371207,0.1292,3095.9,3094.4,5.8534]
[1642530371468,0.1292,3095.9,3095.3,1.53189318]
[1642530371672,0.1292,3096.3,3095.3,1.53189318]
[1642530371867,0.1292,3096.5,3095.3,2.13189318]
[1642530372066,0.1292,3096.5,3095.4,0.1292]
[1642530372067,0.01080005,3096.3,3095.4,0.1292]
[1642530372267,0.01080005,3096.3,3095.8,1.18900874]
[1642530372471,3.67813656,3096.9,3095.9,1.69946]
[1642530372472,0.01023162,3096.2,3095.9,1.69946]
[1642530372670,0.01023162,3096.2,3095.9,0.129]
[1642530372867,0.0096632,3096.1,3095.9,0.129]
[1642530373268,5.85909478,3096.0,3095.9,0.129]
[1642530373468,5.85909478,3096.0,3095.3,0.3]
[1642530373469,5.85909478,3096.0,3095.3,0.80776]
[1642530373668,2.45577974,3095.9,3095.3,0.80776]
[1642530373869,2.46430609,3095.9,3095.1,3.2113]
[1642530374075,2.46430609,3095.9,3094.8,1.6]
[1642530374076,0.00795793,3095.8,3094.8,1.6]
[1642530374273,0.00795793,3095.8,3094.8,0.3]
[1642530374274,0.1292,3095.7,3094.8,0.3]
[1642530374469,0.13658951,3095.7,3094.7,2.91564]
[1642530374671,0.00682108,3095.6,3094.7,1.61564]
[1642530374871,0.00682108,3095.6,3094.6,3.6854]
[1642530374872,0.1292,3095.5,3094.6,3.6854]
[1642530375098,0.13545266,3095.5,3094.6,3.6854]
[1642530375299,0.02999814,3095.4,3094.6,3.6854]
[1642530375501,0.1292,3095.3,3094.4,7.1446]
[1642530375701,0.14757538,3095.3,3094.4,3.3121]
[1642530375902,0.14757538,3095.3,3094.4,4.12011]
[1642530375903,0.00454739,3095.2,3094.4,4.12011]
[1642530376104,0.00454739,3095.2,3094.5,1.0]
[1642530376105,0.1292,3095.1,3094.5,1.0]
[1642530376304,0.00397897,3095.1,3094.7,1.50172778]
[1642530376502,0.00341054,3095.0,3094.7,2.10172778]
[1642530376701,0.00341054,3095.0,3094.8,0.01053338]
[1642530377006,0.00284212,3094.9,3094.8,1.99560674]
[1642530377206,0.00284212,3094.9,3094.8,3.80340674]
[1642530377501,0.00284212,3094.9,3094.8,7.75671875]
[1642530377701,0.00284212,3094.9,3094.8,5.77164539]
[1642530377902,0.00284212,3094.9,3094.8,2.37164539]
[1642530378103,0.00284212,3094.9,3094.8,2.29380699]
[1642530378306,0.00284212,3094.9,3094.8,1.94753338]
[1642530378505,0.00284212,3094.9,3094.8,1.13973338]
[1642530378706,0.00284212,3094.9,3094.8,1.43973338]
[1642530378955,0.00284212,3094.9,3094.8,0.43973338]
[1642530379155,0.00284212,3094.9,3094.8,1.13973338]
[1642530379356,0.00284212,3094.9,3094.8,0.13973338]
[1642530379558,0.00284212,3094.9,3094.8,1.01053338]
[1642530379755,0.00284212,3094.9,3094.8,0.01053338]
[1642530379954,0.00284212,3094.9,3094.8,1.01053338]
[1642530380356,0.1292,3095.9,3094.9,2.85]
[1642530380555,0.1292,3095.9,3095.0,0.80776]
[1642530380755,0.00511581,3095.8,3095.0,1.80776]
[1642530380958,0.1292,3095.7,3095.0,1.80776]
[1642530381159,0.13374739,3095.7,3095.0,1.80776]
[1642530381354,0.00397896,3095.6,3095.0,1.80776]
[1642530381554,0.00397896,3095.6,3095.0,0.80776]
[1642530381759,0.00341054,3095.5,3095.2,0.8077]
[1642530381958,0.00341054,3095.5,3095.3,0.80761]
[1642530382160,0.00284212,3095.4,3095.3,0.80761]
[1642530382355,0.00284212,3095.4,3095.3,1.10761]
[1642530383004,0.00284212,3095.4,3095.3,2.72278]
[1642530383603,0.00284212,3095.4,3095.3,3.72278]
[1642530384006,0.00284212,3095.4,3095.3,4.02278]
[1642530384204,0.00284212,3095.4,3095.3,6.95198]
[1642530384406,2.74344424,3095.9,3095.3,6.95198]
[1642530384407,2.74344424,3095.9,3095.4,4.8]
[1642530384608,2.74344424,3095.9,3095.6,1.25497129]
[1642530384810,0.00227369,3095.8,3095.6,2.19167129]
[1642530385007,0.00227369,3095.8,3095.7,0.3]
[1642530385207,2.24344424,3096.4,3095.9,0.80751]
[1642530385606,0.00511581,3096.3,3095.9,1.40751]
[1642530385809,0.00511581,3096.3,3095.9,3.02244]
[1642530386008,0.00454738,3096.2,3095.9,3.02244]
[1642530386210,0.00454738,3096.2,3096.1,0.8074]
[1642530386475,1.58630347,3097.0,3096.1,0.8074]
[1642530386673,1.58630347,3097.0,3096.1,2.43911067]
[1642530386875,0.00795792,3096.8,3096.2,1.61481]
[1642530387074,0.00795792,3096.8,3096.2,0.3]
[1642530387275,0.0073895,3096.7,3096.2,1.0]
[1642530387579,2.08333178,3097.1,3096.1,0.30958682]
[1642530387580,0.00682108,3096.6,3096.1,0.00958682]
[1642530387975,0.00625265,3096.5,3096.1,1.11709682]
[1642530388375,0.00568423,3096.4,3096.1,1.41709682]
[1642530388774,0.00511581,3096.3,3096.1,1.41709682]
[1642530388975,0.00511581,3096.3,3096.1,1.60958682]
[1642530389176,0.00454738,3096.2,3096.1,0.60958682]
[1642530389377,0.00454738,3096.2,3096.1,0.30958682]
[1642530389576,0.00454738,3096.2,3096.1,0.00958682]
[1642530391710,0.00454738,3096.2,3096.0,0.30958682]
[1642530392111,0.00397896,3096.1,3096.0,0.30958682]
[1642530393313,0.00397896,3096.1,3096.0,0.00958682]
[1642530393716,0.00397896,3096.1,3095.2,0.129]
[1642530393717,5.85,3096.0,3095.2,0.129]
[1642530393951,0.14729686,3095.9,3095.2,0.129]
[1642530394151,0.13204211,3095.9,3095.2,0.129]
[1642530394451,0.00227369,3095.8,3095.2,0.129]
[1642530394652,0.1292,3095.7,3095.2,0.129]
[1642530394853,1.68696259,3095.6,3095.2,0.129]
[1642530395050,1.68809943,3095.6,3095.2,0.129]
[1642530396458,0.1292,3095.5,3095.2,0.129]
[1642530396657,0.93718,3095.5,3095.4,0.00723176]
[1642530396856,3.98091301,3095.5,3095.4,0.00723176]
[1642530397056,9.83091301,3095.5,3095.4,0.00723176]
[1642530397255,10.63895301,3095.5,3095.4,0.00723176]
[1642530397457,10.63895301,3095.5,3095.4,3.176e-05]
[1642530397711,11.23895301,3095.5,3095.4,3.176e-05]
[1642530399712,8.19522,3095.5,3095.4,3.176e-05]
[1642530400713,8.35822,3095.5,3095.4,3.176e-05]
[1642530400914,8.05822,3095.5,3095.4,3.176e-05]
[1642530401751,8.06630118,3095.5,3094.1,1.0]
[1642530401952,0.8080115,3095.3,3094.1,1.80799]
[1642530402151,0.1292,3095.2,3094.2,0.00682109]
[1642530402350,1.85312055,3094.5,3094.2,0.00682109]
[1642530402551,3.8361,3095.2,3094.2,0.00682109]
[1642530402850,0.1292,3095.2,3094.2,0.00682109]
[1642530403056,0.1292,3095.3,3094.2,0.00682109]
[1642530403250,0.1292,3095.3,3094.1,0.00738951]
[1642530403452,0.8080495,3095.1,3094.0,0.00795793]
[1642530403651,2.14002704,3095.0,3094.0,0.00795793]
[1642530403851,2.14002704,3095.0,3094.2,1.48747081]
[1642530404254,2.14002704,3095.0,3094.3,0.00625266]
[1642530404754,0.1292,3095.3,3094.3,0.00625266]
[1642530405611,0.937207,3095.3,3094.3,0.00625266]
[1642530406008,1.9274075,3094.9,3094.3,0.00625266]
[1642530406609,1.9274075,3094.9,3094.1,0.00738951]
[1642530406808,0.1292,3094.8,3094.1,0.00738951]
[1642530407409,0.93736,3094.8,3094.1,0.00738951]
[1642530408214,0.9374237,3094.8,3094.1,0.00738951]
[1642530408412,4.82391791,3094.7,3094.1,0.00738951]
[1642530408611,0.9374,3094.6,3094.1,0.00738951]
[1642530408864,2.4767,3094.6,3094.1,0.00738951]
[1642530409456,3.2849691,3094.6,3094.1,0.00738951]
[1642530410459,2.87831201,3094.5,3094.1,0.00738951]
[1642530410659,0.95315466,3094.4,3094.1,0.00738951]
[1642530410863,3.68662104,3094.3,3094.1,0.00738951]
[1642530411058,0.80832,3094.3,3094.1,0.00738951]
[1642530411460,0.9375102,3094.4,3094.1,0.00738951]
[1642530411660,2.75245583,3094.5,3094.1,0.00738951]
[1642530412059,0.00807602,3094.5,3094.0,0.00795793]
[1642530415007,0.00807602,3094.5,3094.4,1.12073896]
[1642530415410,0.00807602,3094.5,3094.4,1.4264232]
[1642530415610,0.00807602,3094.5,3094.4,1.5556232]
[1642530416210,3.06503778,3095.5,3094.7,0.80779]
[1642530416459,3.06503778,3095.5,3095.3,1.45145523]
[1642530416660,0.00113684,3095.6,3095.3,1.45145523]
[1642530417159,1.94415418,3095.5,3095.1,0.80772]
[1642530417358,1.94415418,3095.5,3094.9,3.05713]
[1642530417359,1.94415418,3095.5,3095.0,0.80776]
[1642530417561,1.94415418,3095.5,3095.2,0.00113685]
[1642530417762,1.94415418,3095.5,3095.1,0.00170527]
[1642530418361,1.94415418,3095.5,3095.2,1.10144834]
[1642530420307,1.79415418,3095.5,3095.2,1.10144834]
[1642530420511,0.00113684,3095.6,3095.2,1.10144834]
[1642530420912,2.74376537,3095.4,3095.3,0.3]
[1642530421113,2.74376537,3095.4,3095.3,6.2792]
[1642530421114,6.537e-05,3095.4,3095.3,6.2792]
[1642530421509,6.537e-05,3095.4,3095.3,7.7422]
[1642530421714,0.00113684,3095.6,3095.4,4.45606814]
[1642530421910,0.00113684,3095.6,3095.4,4.75606814]
[1642530422111,0.00113684,3095.6,3095.5,6.25749]
[1642530422610,0.00113684,3095.6,3095.5,2.10749]
[1642530423509,0.00113684,3095.6,3095.5,1.10749]
[1642530423710,0.00113684,3095.6,3095.5,2.10749]
[1642530424156,0.00113684,3095.6,3095.5,1.10749]
[1642530424357,0.00113684,3095.6,3095.5,2.10749]
[1642530424557,0.00113684,3095.6,3095.5,1.80749]
[1642530424958,2.1286896,3096.4,3095.5,0.80749]
[1642530425158,0.1292,3096.3,3095.8,1.30024641]
[1642530425556,0.1292,3096.3,3095.7,0.8076]
[1642530425761,0.1292,3096.3,3095.5,1.0]
[1642530425958,0.1292,3096.3,3095.4,1.00606814]
[1642530426156,0.1292,3096.3,3095.4,0.00606814]
[1642530426359,1.65424744,3095.6,3095.4,0.81376814]
[1642530426564,0.1292,3096.3,3095.4,0.00606814]
[1642530426862,0.9369359,3096.3,3096.0,0.00701251]
[1642530427059,1.7447059,3096.3,3096.0,0.00701251]
[1642530427737,1.67757785,3096.2,3096.0,1.48766641]
[1642530427939,3.779,3096.1,3096.0,1.48766641]